[Event "*** Titled Tuesday Blitz"]
[Site "Chess.com"]
[Date "2019.02.05"]
[Round "4"]
[White "vpsetter"]
[Black "NateSolon"]
[Result "1/2-1/2"]
[WhiteElo "2633"]
[BlackElo "2532"]
[TimeControl "180+2"]
[EndTime "13:51:46 PST"]
[Termination "Game drawn by repetition"]

1. e4 {[%clk 0:03:01.9]} 1... c5 {[%clk 0:03:00.5]} 2. Nf3 {[%clk 0:03:02.5]}
2... d6 {[%clk 0:03:01.5]} 3. d4 {[%clk 0:03:04]} 3... cxd4 {[%clk 0:03:03.4]}
4. Nxd4 {[%clk 0:03:05.5]} 4... Nf6 {[%clk 0:03:05]} 5. Nc3 {[%clk 0:03:06.7]}
5... Nc6 {[%clk 0:03:06.6]} 6. Bg5 {[%clk 0:03:06.7]} 6... Bd7 {[%clk
0:03:07.9]} 7. Qd2 {[%clk 0:03:07]} 7... Rc8 {[%clk 0:03:08.6]} 8. f4 {[%clk
0:03:05.3]} 8... Nxd4 {[%clk 0:03:01.8]} 9. Qxd4 {[%clk 0:03:05.7]} 9... Qa5
{[%clk 0:03:03.1]} 10. O-O-O {[%clk 0:03:05.3]} 10... e5 {[%clk 0:02:57.8]} 11.
fxe5 {[%clk 0:02:44.1]} 11... dxe5 {[%clk 0:02:58.8]} 12. Qd2 {[%clk 0:02:23]}
12... Bc6 {[%clk 0:02:22.1]} 13. Bxf6 {[%clk 0:02:22.6]} 13... gxf6 {[%clk
0:02:23.2]} 14. a3 {[%clk 0:02:16.9]} 14... Bc5 {[%clk 0:01:32]} 15. Kb1 {[%clk
0:02:13.3]} 15... Bd4 {[%clk 0:01:28.6]} 16. Nd5 {[%clk 0:02:08.4]} 16... Qxd2
{[%clk 0:01:29.4]} 17. Rxd2 {[%clk 0:02:08]} 17... f5 {[%clk 0:01:27.4]} 18. Bd3
{[%clk 0:01:43.5]} 18... f4 {[%clk 0:01:23.9]} 19. Rf1 {[%clk 0:01:33]} 19...
Bxd5 {[%clk 0:00:57.4]} 20. exd5 {[%clk 0:01:33]} 20... Ke7 {[%clk 0:00:58.8]}
21. d6+ {[%clk 0:01:20.3]} 21... Kxd6 {[%clk 0:00:45.2]} 22. Bf5 {[%clk
0:01:21.1]} 22... Ke7 {[%clk 0:00:36.7]} 23. Bxc8 {[%clk 0:01:20.6]} 23... Rxc8
{[%clk 0:00:38.6]} 24. c3 {[%clk 0:01:02.8]} 24... Be3 {[%clk 0:00:39.7]} 25.
Rd5 {[%clk 0:01:00.6]} 25... Ke6 {[%clk 0:00:40.2]} 26. Rfd1 {[%clk 0:01:01.9]}
26... Rg8 {[%clk 0:00:40.7]} 27. Rd6+ {[%clk 0:01:02.2]} 27... Kf5 {[%clk
0:00:42]} 28. Rd7 {[%clk 0:01:03.4]} 28... Rxg2 {[%clk 0:00:39.5]} 29. Rxf7+
{[%clk 0:01:04.4]} 29... Ke4 {[%clk 0:00:40.9]} 30. Rf1 {[%clk 0:00:50.2]} 30...
Rxh2 {[%clk 0:00:37]} 31. Rxb7 {[%clk 0:00:38.3]} 31... Kd3 {[%clk 0:00:24]} 32.
Rd7+ {[%clk 0:00:33.5]} 32... Ke2 {[%clk 0:00:25.2]} 33. Rdd1 {[%clk 0:00:34]}
33... Bd2 {[%clk 0:00:19.2]} 34. Kc2 {[%clk 0:00:32.1]} 34... Ke3 {[%clk
0:00:20.6]} 35. Rh1 {[%clk 0:00:23.4]} 35... Re2 {[%clk 0:00:18.8]} 36. Rxh7
{[%clk 0:00:15.7]} 36... f3 {[%clk 0:00:19.8]} 37. Rh3 {[%clk 0:00:15.4]} 37...
e4 {[%clk 0:00:20.7]} 38. b4 {[%clk 0:00:14.5]} 38... Be1+ {[%clk 0:00:18.5]}
39. Kb3 {[%clk 0:00:15]} 39... Kf2 {[%clk 0:00:16]} 40. Rh1 {[%clk 0:00:13.4]}
40... Kg2 {[%clk 0:00:10.7]} 41. Rhxe1 {[%clk 0:00:12.2]} 41... Rxe1 {[%clk
0:00:12.6]} 42. Rxe1 {[%clk 0:00:13.1]} 42... f2 {[%clk 0:00:14.5]} 43. Rxe4
{[%clk 0:00:13.7]} 43... f1=Q {[%clk 0:00:15.8]} 44. Rd4 {[%clk 0:00:14.4]}
44... Kf3 {[%clk 0:00:16.7]} 45. a4 {[%clk 0:00:14.1]} 45... Qb1+ {[%clk
0:00:17.6]} 46. Kc4 {[%clk 0:00:14.7]} 46... Ke3 {[%clk 0:00:16.7]} 47. a5
{[%clk 0:00:15.2]} 47... Qf1+ {[%clk 0:00:17.4]} 48. Kc5 {[%clk 0:00:15.9]}
48... Qf5+ {[%clk 0:00:15.8]} 49. Kc4 {[%clk 0:00:15.2]} 49... Qf1+ {[%clk
0:00:16]} 50. Kc5 {[%clk 0:00:16]} 50... a6 {[%clk 0:00:16.9]} 51. Rd5 {[%clk
0:00:12.2]} 51... Qb5+ {[%clk 0:00:16.9]} 52. Kd6 {[%clk 0:00:13.1]} 52... Qb8+
{[%clk 0:00:16]} 53. Kd7 {[%clk 0:00:08.5]} 53... Qb7+ {[%clk 0:00:16.9]} 54.
Kd6 {[%clk 0:00:09.6]} 54... Ke4 {[%clk 0:00:16.9]} 55. Rc5 {[%clk 0:00:09.8]}
55... Qb8+ {[%clk 0:00:17.1]} 56. Kc6 {[%clk 0:00:10.9]} 56... Qa7 {[%clk
0:00:15.9]} 57. c4 {[%clk 0:00:09.6]} 57... Qb8 {[%clk 0:00:14.6]} 58. b5 {[%clk
0:00:10.6]} 58... axb5 {[%clk 0:00:14]} 59. cxb5 {[%clk 0:00:11.6]} 59... Qa8+
{[%clk 0:00:14.3]} 60. Kb6 {[%clk 0:00:12.7]} 60... Qb8+ {[%clk 0:00:15.8]} 61.
Kc6 {[%clk 0:00:13.9]} 61... Qa8+ {[%clk 0:00:17.4]} 62. Kb6 {[%clk 0:00:11.1]}
62... Qb8+ {[%clk 0:00:18.6]} 63. Kc6 {[%clk 0:00:12.3]} 63... Qa8+ {[%clk
0:00:19.3]} 64. Kb6 {[%clk 0:00:13.5]} 1/2-1/2

[Event "*** Titled Tuesday Blitz"]
[Site "Chess.com"]
[Date "2019.02.05"]
[Round "4"]
[White "aquaticpineapples"]
[Black "AsaHoffmann"]
[Result "1-0"]
[WhiteElo "2118"]
[BlackElo "2157"]
[TimeControl "180+2"]
[EndTime "13:51:50 PST"]
[Termination "aquaticpineapples won by resignation"]

1. d4 {[%clk 0:02:09.2]} 1... Nf6 {[%clk 0:02:40.9]} 2. Nf3 {[%clk 0:02:09]}
2... d6 {[%clk 0:02:39.6]} 3. Nbd2 {[%clk 0:02:09.9]} 3... Bf5 {[%clk
0:02:38.7]} 4. b3 {[%clk 0:02:09]} 4... Nbd7 {[%clk 0:02:38.1]} 5. Bb2 {[%clk
0:02:07.5]} 5... c6 {[%clk 0:02:38.5]} 6. e3 {[%clk 0:02:05.3]} 6... h6 {[%clk
0:02:37.6]} 7. Bd3 {[%clk 0:02:04.3]} 7... Bxd3 {[%clk 0:02:37.3]} 8. cxd3
{[%clk 0:02:03]} 8... e6 {[%clk 0:02:37.9]} 9. O-O {[%clk 0:02:03.7]} 9... Be7
{[%clk 0:02:37.2]} 10. Rc1 {[%clk 0:02:01.8]} 10... O-O {[%clk 0:02:36.3]} 11.
Ba1 {[%clk 0:01:59.3]} 11... a5 {[%clk 0:02:34.6]} 12. e4 {[%clk 0:01:55.2]}
12... a4 {[%clk 0:02:09.9]} 13. b4 {[%clk 0:01:50.4]} 13... a3 {[%clk
0:02:08.1]} 14. Re1 {[%clk 0:01:42.8]} 14... Ne8 {[%clk 0:02:07]} 15. Qb3 {[%clk
0:01:39.1]} 15... Nc7 {[%clk 0:02:05]} 16. Nc4 {[%clk 0:01:18.1]} 16... Nb5
{[%clk 0:02:04]} 17. Ne3 {[%clk 0:01:15]} 17... d5 {[%clk 0:02:02.5]} 18. exd5
{[%clk 0:01:10.9]} 18... exd5 {[%clk 0:02:00.9]} 19. Nf5 {[%clk 0:01:09]} 19...
Bf6 {[%clk 0:02:00.5]} 20. Ne5 {[%clk 0:01:05.6]} 20... Re8 {[%clk 0:01:55.4]}
21. f4 {[%clk 0:01:04.3]} 21... Nf8 {[%clk 0:01:52.4]} 22. Re3 {[%clk
0:00:59.9]} 22... Ng6 {[%clk 0:01:52.2]} 23. g3 {[%clk 0:00:59.3]} 23... Qb6
{[%clk 0:01:43.4]} 24. Nd7 {[%clk 0:00:52.8]} 24... Nxd4 {[%clk 0:01:32.7]} 25.
Nxb6 {[%clk 0:00:49.7]} 25... Nxb3 {[%clk 0:01:25]} 26. axb3 {[%clk 0:00:47.7]}
26... Rxe3 {[%clk 0:01:13.9]} 27. Nxe3 {[%clk 0:00:45.1]} 27... Bb2 {[%clk
0:01:09.7]} 28. Nxa8 {[%clk 0:00:39.5]} 28... Bxc1 {[%clk 0:01:09.4]} 29. Nc2
{[%clk 0:00:35.6]} 29... Bb2 {[%clk 0:01:09.4]} 30. Nb6 {[%clk 0:00:31]} 30...
Ne7 {[%clk 0:01:08.9]} 31. Na4 {[%clk 0:00:30.2]} 31... Bc1 {[%clk 0:01:06.2]}
32. Kf1 {[%clk 0:00:28.3]} 32... Nf5 {[%clk 0:01:06.5]} 33. Ke2 {[%clk
0:00:27.5]} 33... h5 {[%clk 0:01:05.9]} 34. Kd1 {[%clk 0:00:28]} 34... Be3
{[%clk 0:01:04.8]} 35. Nxa3 {[%clk 0:00:24]} 35... Bg1 {[%clk 0:01:04.9]} 36.
Nc5 {[%clk 0:00:21.3]} 36... Bxh2 {[%clk 0:01:05.1]} 37. Nxb7 {[%clk 0:00:21.4]}
37... Bxg3 {[%clk 0:01:05.6]} 38. Nd8 {[%clk 0:00:16.7]} 38... h4 {[%clk
0:01:04.1]} 39. Ke2 {[%clk 0:00:14.8]} 39... h3 {[%clk 0:01:03.2]} 40. Kf1
{[%clk 0:00:14]} 40... h2 {[%clk 0:01:01.8]} 41. Kg2 {[%clk 0:00:15]} 41... Bxf4
{[%clk 0:01:00.2]} 42. Nxc6 {[%clk 0:00:14.6]} 42... Ne3+ {[%clk 0:00:59.2]} 43.
Kh1 {[%clk 0:00:13.6]} 43... Ng4 {[%clk 0:00:59.9]} 44. Bd4 {[%clk 0:00:14.3]}
44... Kf8 {[%clk 0:00:58.5]} 45. b5 {[%clk 0:00:13.2]} 45... Ke8 {[%clk
0:00:59.1]} 46. b6 {[%clk 0:00:12.5]} 46... Kd7 {[%clk 0:00:59.7]} 47. Nb4
{[%clk 0:00:12.6]} 47... Kc8 {[%clk 0:00:55.3]} 48. Nxd5 {[%clk 0:00:12.2]}
48... Bd6 {[%clk 0:00:54.8]} 49. Nb5 {[%clk 0:00:10.6]} 49... Bg3 {[%clk
0:00:53.3]} 50. Nbc3 {[%clk 0:00:07.3]} 50... Kb7 {[%clk 0:00:52.6]} 51. Ne2
{[%clk 0:00:07.6]} 51... Bd6 {[%clk 0:00:51.7]} 52. b4 {[%clk 0:00:06.8]} 52...
Kc6 {[%clk 0:00:51.9]} 53. Nec3 {[%clk 0:00:07.2]} 53... f6 {[%clk 0:00:50.6]}
54. b5+ {[%clk 0:00:08.1]} 54... Kb7 {[%clk 0:00:50.8]} 55. Ne4 {[%clk
0:00:08.5]} 55... Bb8 {[%clk 0:00:48.7]} 56. Nd2 {[%clk 0:00:07.3]} 56... f5
{[%clk 0:00:49.1]} 57. Nc4 {[%clk 0:00:07.7]} 57... f4 {[%clk 0:00:49]} 58. Na5+
{[%clk 0:00:06.6]} 58... Kc8 {[%clk 0:00:49.3]} 59. b7+ {[%clk 0:00:07.6]} 59...
Kd7 {[%clk 0:00:49.8]} 60. Nc6 {[%clk 0:00:08.3]} 60... Bd6 {[%clk 0:00:49.1]}
61. b8=Q {[%clk 0:00:08.5]} 61... Bxb8 {[%clk 0:00:48.9]} 62. Nxb8+ {[%clk
0:00:09.6]} 62... Kd6 {[%clk 0:00:49.5]} 63. Nxf4 {[%clk 0:00:09.8]} 63... g5
{[%clk 0:00:50.1]} 64. Ne2 {[%clk 0:00:09.5]} 64... Kd5 {[%clk 0:00:50.6]} 65.
Bb6 {[%clk 0:00:09.7]} 65... Nf2+ {[%clk 0:00:48.5]} 66. Bxf2 {[%clk 0:00:10.1]}
66... Ke5 {[%clk 0:00:48.7]} 67. Kxh2 {[%clk 0:00:11]} 67... Kf5 {[%clk
0:00:49.4]} 68. Kg3 {[%clk 0:00:12]} 68... g4 {[%clk 0:00:50]} 69. b6 {[%clk
0:00:12.6]} 1-0

[Event "*** Titled Tuesday Blitz"]
[Site "Chess.com"]
[Date "2019.02.05"]
[Round "4"]
[White "Chess2019Player"]
[Black "Walter_White_Poland"]
[Result "1-0"]
[WhiteElo "2029"]
[BlackElo "2099"]
[TimeControl "180+2"]
[EndTime "13:51:50 PST"]
[Termination "Chess2019Player won by resignation"]

1. e4 {[%clk 0:02:56.5]} 1... e5 {[%clk 0:03:00.3]} 2. Nf3 {[%clk 0:02:55.8]}
2... Nc6 {[%clk 0:03:01.3]} 3. Bb5 {[%clk 0:02:57.3]} 3... a6 {[%clk 0:03:02.3]}
4. Ba4 {[%clk 0:02:58.2]} 4... Nf6 {[%clk 0:03:03.4]} 5. O-O {[%clk 0:02:58.9]}
5... b5 {[%clk 0:03:02.8]} 6. Bb3 {[%clk 0:02:59.3]} 6... Be7 {[%clk 0:03:03.9]}
7. Re1 {[%clk 0:02:58.5]} 7... d6 {[%clk 0:03:04.4]} 8. c3 {[%clk 0:02:59.5]}
8... O-O {[%clk 0:03:04.5]} 9. h3 {[%clk 0:03:00.8]} 9... Nb8 {[%clk 0:03:04.7]}
10. d4 {[%clk 0:03:01.8]} 10... Nbd7 {[%clk 0:03:06.2]} 11. Nbd2 {[%clk
0:03:00.6]} 11... Bb7 {[%clk 0:03:07.7]} 12. Bc2 {[%clk 0:02:57.1]} 12... Re8
{[%clk 0:03:06.6]} 13. a4 {[%clk 0:02:57]} 13... Bf8 {[%clk 0:03:04.5]} 14. Bd3
{[%clk 0:02:56.9]} 14... c6 {[%clk 0:03:01.2]} 15. b4 {[%clk 0:02:51.8]} 15...
Qc7 {[%clk 0:02:58.2]} 16. Nb3 {[%clk 0:02:51.4]} 16... Rad8 {[%clk 0:02:54.5]}
17. Qc2 {[%clk 0:02:44.1]} 17... Nb6 {[%clk 0:02:47.4]} 18. axb5 {[%clk
0:02:33.7]} 18... axb5 {[%clk 0:02:47.5]} 19. Bg5 {[%clk 0:02:33.3]} 19... Nbd7
{[%clk 0:02:19]} 20. c4 {[%clk 0:01:56.3]} 20... bxc4 {[%clk 0:01:49.3]} 21.
Bxc4 {[%clk 0:01:36.8]} 21... d5 {[%clk 0:01:48.2]} 22. Bxd5 {[%clk 0:01:12.1]}
22... exd4 {[%clk 0:01:23.3]} 23. Nbxd4 {[%clk 0:00:54.5]} 23... Bxb4 {[%clk
0:00:34]} 24. Reb1 {[%clk 0:00:46.8]} 24... Qd6 {[%clk 0:00:22.8]} 25. Nf5
{[%clk 0:00:31]} 25... Qf8 {[%clk 0:00:18]} 26. Bxf7+ {[%clk 0:00:31.7]} 26...
Qxf7 {[%clk 0:00:17.6]} 27. Rxb4 {[%clk 0:00:32.3]} 27... Nf8 {[%clk 0:00:13.3]}
28. e5 {[%clk 0:00:27.7]} 28... Nd5 {[%clk 0:00:08.3]} 29. Rbb1 {[%clk
0:00:16.6]} 29... Ra8 {[%clk 0:00:05.8]} 30. Nd6 {[%clk 0:00:16.7]} 30... Qe6
{[%clk 0:00:05.2]} 31. Nxb7 {[%clk 0:00:14.6]} 31... Rxa1 {[%clk 0:00:05.6]} 32.
Rxa1 {[%clk 0:00:15.7]} 32... Nb4 {[%clk 0:00:06.1]} 33. Qb2 {[%clk 0:00:14.5]}
33... Nd3 {[%clk 0:00:05.9]} 34. Qa2 {[%clk 0:00:15]} 34... Qxa2 {[%clk
0:00:05.8]} 35. Rxa2 {[%clk 0:00:16.9]} 35... Nxe5 {[%clk 0:00:06.3]} 36. Nxe5
{[%clk 0:00:17.1]} 36... Rxe5 {[%clk 0:00:07.5]} 37. Be3 {[%clk 0:00:17.4]}
37... Rb5 {[%clk 0:00:08.5]} 38. Nc5 {[%clk 0:00:18]} 38... Ng6 {[%clk
0:00:08.6]} 39. Kh2 {[%clk 0:00:19.2]} 39... Ne5 {[%clk 0:00:09.3]} 40. Ra8+
{[%clk 0:00:20]} 40... Kf7 {[%clk 0:00:09.8]} 41. Rc8 {[%clk 0:00:20.9]} 41...
Nc4 {[%clk 0:00:10.1]} 42. Rc7+ {[%clk 0:00:21.8]} 42... Ke8 {[%clk 0:00:10]}
43. Rxc6 {[%clk 0:00:21.1]} 43... Ne5 {[%clk 0:00:10.2]} 44. Rc8+ {[%clk
0:00:20.9]} 44... Ke7 {[%clk 0:00:10.8]} 45. Rc7+ {[%clk 0:00:21]} 45... Kd6
{[%clk 0:00:11.6]} 46. Rxg7 {[%clk 0:00:21]} 46... Nc4 {[%clk 0:00:11.9]} 47.
Ne4+ {[%clk 0:00:19.5]} 47... Ke5 {[%clk 0:00:12.8]} 48. Ng3 {[%clk 0:00:18.6]}
48... Nxe3 {[%clk 0:00:13.2]} 49. fxe3 {[%clk 0:00:20.5]} 49... Rb2 {[%clk
0:00:13.1]} 50. Rxh7 {[%clk 0:00:21.3]} 50... Kf6 {[%clk 0:00:14.1]} 51. Rh6+
{[%clk 0:00:21.9]} 51... Kg5 {[%clk 0:00:15.1]} 52. Rc6 {[%clk 0:00:23.2]} 52...
Kh4 {[%clk 0:00:14.9]} 53. Rc4+ {[%clk 0:00:22.7]} 53... Kg5 {[%clk 0:00:15.7]}
54. h4+ {[%clk 0:00:24]} 54... Kg6 {[%clk 0:00:16.5]} 55. Kh3 {[%clk 0:00:25.9]}
55... Kf6 {[%clk 0:00:17.4]} 56. Rc6+ {[%clk 0:00:26.6]} 56... Ke5 {[%clk
0:00:18.2]} 57. e4 {[%clk 0:00:27.5]} 57... Kf4 {[%clk 0:00:19.1]} 58. h5 {[%clk
0:00:28.2]} 58... Rb3 {[%clk 0:00:19.5]} 59. Rf6+ {[%clk 0:00:28.6]} 59... Kg5
{[%clk 0:00:20.5]} 60. Rg6+ {[%clk 0:00:28.7]} 60... Kf4 {[%clk 0:00:20.2]} 61.
Rg4+ {[%clk 0:00:30.6]} 61... Ke3 {[%clk 0:00:20]} 62. h6 {[%clk 0:00:32.5]}
62... Kf2 {[%clk 0:00:20.9]} 63. h7 {[%clk 0:00:32.5]} 63... Rb8 {[%clk
0:00:20.5]} 64. Rg8 {[%clk 0:00:33.2]} 64... Rb6 {[%clk 0:00:19.5]} 65. h8=Q
{[%clk 0:00:31.8]} 1-0

[Event "*** Titled Tuesday Blitz"]
[Site "Chess.com"]
[Date "2019.02.05"]
[Round "4"]
[White "Jooonaaas1996"]
[Black "Naruto-K"]
[Result "1/2-1/2"]
[WhiteElo "2294"]
[BlackElo "2363"]
[TimeControl "180+2"]
[EndTime "13:51:58 PST"]
[Termination "Game drawn by repetition"]

1. e4 {[%clk 0:03:01.9]} 1... e6 {[%clk 0:03:00.1]} 2. d4 {[%clk 0:03:02.3]}
2... d5 {[%clk 0:03:01.4]} 3. Nc3 {[%clk 0:03:03.9]} 3... Bb4 {[%clk 0:03:01.8]}
4. e5 {[%clk 0:03:04]} 4... Ne7 {[%clk 0:03:01.8]} 5. a3 {[%clk 0:03:05.1]} 5...
Bxc3+ {[%clk 0:03:03]} 6. bxc3 {[%clk 0:03:07]} 6... b6 {[%clk 0:03:04.2]} 7. a4
{[%clk 0:02:58.5]} 7... Ba6 {[%clk 0:03:03.5]} 8. Bxa6 {[%clk 0:02:58.9]} 8...
Nxa6 {[%clk 0:03:05]} 9. a5 {[%clk 0:02:59.5]} 9... c5 {[%clk 0:03:05.4]} 10.
Nf3 {[%clk 0:02:56.2]} 10... h6 {[%clk 0:03:02.7]} 11. axb6 {[%clk 0:02:55.9]}
11... axb6 {[%clk 0:03:03.5]} 12. Qe2 {[%clk 0:02:51.5]} 12... Qc8 {[%clk
0:03:03.9]} 13. O-O {[%clk 0:02:35.9]} 13... O-O {[%clk 0:03:04.1]} 14. Ba3
{[%clk 0:02:19]} 14... Nc6 {[%clk 0:02:45.8]} 15. Rfb1 {[%clk 0:02:15.7]} 15...
Na5 {[%clk 0:02:40.3]} 16. Bxc5 {[%clk 0:01:55.1]} 16... Nxc5 {[%clk 0:02:39.5]}
17. dxc5 {[%clk 0:01:55.8]} 17... bxc5 {[%clk 0:02:37.3]} 18. Nd2 {[%clk
0:01:49.9]} 18... Nc6 {[%clk 0:02:29]} 19. Qe3 {[%clk 0:01:23.8]} 19... Rxa1
{[%clk 0:02:21.1]} 20. Rxa1 {[%clk 0:01:24]} 20... Ne7 {[%clk 0:02:17.3]} 21. h3
{[%clk 0:01:15.9]} 21... Qc7 {[%clk 0:02:02.8]} 22. c4 {[%clk 0:01:12.2]} 22...
d4 {[%clk 0:01:44]} 23. Qe4 {[%clk 0:01:12.8]} 23... Nc6 {[%clk 0:01:38.8]} 24.
Nf3 {[%clk 0:01:13]} 24... Rb8 {[%clk 0:01:26.4]} 25. Ra6 {[%clk 0:01:03.6]}
25... Nb4 {[%clk 0:00:56.5]} 26. Ra3 {[%clk 0:01:03.6]} 26... Nc6 {[%clk
0:00:40.6]} 27. c3 {[%clk 0:01:04.5]} 27... Rd8 {[%clk 0:00:31]} 28. cxd4 {[%clk
0:01:03]} 28... Nxd4 {[%clk 0:00:29.6]} 29. Ra8 {[%clk 0:00:40.2]} 29... Nxf3+
{[%clk 0:00:21.8]} 30. Qxf3 {[%clk 0:00:40]} 30... Rxa8 {[%clk 0:00:19.1]} 31.
Qxa8+ {[%clk 0:00:41.9]} 31... Kh7 {[%clk 0:00:20.1]} 32. Qe4+ {[%clk
0:00:42.4]} 32... g6 {[%clk 0:00:21.6]} 33. Kf1 {[%clk 0:00:36.9]} 33... Qb6
{[%clk 0:00:21.4]} 34. g3 {[%clk 0:00:33.8]} 34... Qb4 {[%clk 0:00:19.4]} 35.
Qf4 {[%clk 0:00:33.4]} 35... Kg7 {[%clk 0:00:18.4]} 36. g4 {[%clk 0:00:31.3]}
36... Qc3 {[%clk 0:00:16]} 37. Kg2 {[%clk 0:00:29.3]} 37... Qd3 {[%clk 0:00:17]}
38. h4 {[%clk 0:00:27.9]} 38... Qd7 {[%clk 0:00:09.3]} 39. h5 {[%clk 0:00:26.2]}
39... gxh5 {[%clk 0:00:07.8]} 40. gxh5 {[%clk 0:00:25.7]} 40... Qb7+ {[%clk
0:00:04.6]} 41. Kg3 {[%clk 0:00:21.6]} 41... Qd7 {[%clk 0:00:04.5]} 42. Qf6+
{[%clk 0:00:21.8]} 42... Kh7 {[%clk 0:00:05.7]} 43. Qf4 {[%clk 0:00:22.6]} 43...
Qb7 {[%clk 0:00:06.4]} 44. Qf3 {[%clk 0:00:21.2]} 44... Qd7 {[%clk 0:00:07.1]}
45. Qe4+ {[%clk 0:00:21.7]} 45... Kg7 {[%clk 0:00:07.8]} 46. Kg2 {[%clk
0:00:22.8]} 46... Qe7 {[%clk 0:00:08.1]} 47. Qg4+ {[%clk 0:00:23]} 47... Kh7
{[%clk 0:00:08.6]} 48. Qf4 {[%clk 0:00:23.7]} 48... Kg7 {[%clk 0:00:09.3]} 49.
Qg3+ {[%clk 0:00:24]} 49... Kh7 {[%clk 0:00:10.4]} 50. f4 {[%clk 0:00:25.1]}
50... Qd7 {[%clk 0:00:10.4]} 51. Qe3 {[%clk 0:00:25.8]} 51... Qc6+ {[%clk
0:00:07.5]} 52. Kf2 {[%clk 0:00:25.7]} 52... Qa4 {[%clk 0:00:07.6]} 53. Qe4+
{[%clk 0:00:24.1]} 53... Kg7 {[%clk 0:00:08.7]} 54. Qg2+ {[%clk 0:00:24.9]}
54... Kf8 {[%clk 0:00:08.3]} 55. Qe4 {[%clk 0:00:24.8]} 55... Qb4 {[%clk
0:00:07.7]} 56. Qe2 {[%clk 0:00:23]} 56... Qc3 {[%clk 0:00:07.6]} 57. Kg2 {[%clk
0:00:22.3]} 57... Qd4 {[%clk 0:00:08.6]} 58. Kf3 {[%clk 0:00:16.8]} 58... Qc3+
{[%clk 0:00:09.3]} 59. Kg2 {[%clk 0:00:16.8]} 59... Qd4 {[%clk 0:00:10.2]} 60.
Kf3 {[%clk 0:00:18]} 60... Qc3+ {[%clk 0:00:11.3]} 61. Kf2 {[%clk 0:00:19.6]}
61... Qd4+ {[%clk 0:00:12.1]} 62. Kf3 {[%clk 0:00:18.8]} 62... Qc3+ {[%clk
0:00:13.1]} 63. Kg4 {[%clk 0:00:19.7]} 63... Qd4 {[%clk 0:00:10.9]} 64. Kf3
{[%clk 0:00:15.2]} 64... Qc3+ {[%clk 0:00:10.8]} 65. Kg4 {[%clk 0:00:15.9]}
65... Qd4 {[%clk 0:00:12.1]} 66. Kf3 {[%clk 0:00:17.1]} 1/2-1/2

[Event "*** Titled Tuesday Blitz"]
[Site "Chess.com"]
[Date "2019.02.05"]
[Round "4"]
[White "chesstatour"]
[Black "HouseOfDurin"]
[Result "0-1"]
[WhiteElo "1997"]
[BlackElo "1909"]
[TimeControl "180+2"]
[EndTime "13:51:59 PST"]
[Termination "HouseOfDurin won by resignation"]

1. c4 {[%clk 0:03:01.9]} 1... c5 {[%clk 0:03:00.2]} 2. Nf3 {[%clk 0:03:01.8]}
2... Nc6 {[%clk 0:02:59.4]} 3. d4 {[%clk 0:03:01.8]} 3... cxd4 {[%clk 0:03:01]}
4. Nxd4 {[%clk 0:03:03.1]} 4... e5 {[%clk 0:03:02]} 5. Nc2 {[%clk 0:03:03.3]}
5... Nf6 {[%clk 0:02:58.5]} 6. Nc3 {[%clk 0:03:02.3]} 6... Bb4 {[%clk
0:02:57.2]} 7. Nxb4 {[%clk 0:02:50.2]} 7... Nxb4 {[%clk 0:02:56]} 8. Bg5 {[%clk
0:02:43.7]} 8... h6 {[%clk 0:02:30.7]} 9. Bxf6 {[%clk 0:02:38]} 9... Qxf6 {[%clk
0:02:32.6]} 10. a3 {[%clk 0:02:03.9]} 10... Nc6 {[%clk 0:02:20.2]} 11. Ne4
{[%clk 0:01:49.3]} 11... Qe6 {[%clk 0:02:04.1]} 12. Nd6+ {[%clk 0:01:45]} 12...
Ke7 {[%clk 0:02:04.8]} 13. Nxc8+ {[%clk 0:01:19.5]} 13... Raxc8 {[%clk
0:02:02.5]} 14. e3 {[%clk 0:01:20.6]} 14... Rhd8 {[%clk 0:01:51.9]} 15. Be2
{[%clk 0:01:02.2]} 15... d5 {[%clk 0:01:46.7]} 16. Qa4 {[%clk 0:00:44.8]} 16...
a6 {[%clk 0:01:20.3]} 17. O-O {[%clk 0:00:40.1]} 17... d4 {[%clk 0:01:04.8]} 18.
Rfd1 {[%clk 0:00:17.2]} 18... dxe3 {[%clk 0:01:04]} 19. fxe3 {[%clk 0:00:16.6]}
19... Kf8 {[%clk 0:00:47]} 20. c5 {[%clk 0:00:15.6]} 20... Qe7 {[%clk 0:00:34]}
21. b4 {[%clk 0:00:14.3]} 21... Qg5 {[%clk 0:00:30.6]} 22. Qb3 {[%clk
0:00:14.2]} 22... Rxd1+ {[%clk 0:00:24.7]} 23. Rxd1 {[%clk 0:00:14.3]} 23... Rd8
{[%clk 0:00:25.5]} 24. Rf1 {[%clk 0:00:14.3]} 24... Rd7 {[%clk 0:00:18.7]} 25.
Bc4 {[%clk 0:00:14.8]} 25... f6 {[%clk 0:00:17.4]} 26. a4 {[%clk 0:00:14.4]}
26... Ke7 {[%clk 0:00:10.8]} 27. Bg8 {[%clk 0:00:13.4]} 27... Kf8 {[%clk
0:00:10.7]} 28. Bh7 {[%clk 0:00:11.5]} 28... Ke7 {[%clk 0:00:10.5]} 29. Qg8
{[%clk 0:00:11.7]} 29... Rd8 {[%clk 0:00:10.1]} 30. Qb3 {[%clk 0:00:10.7]} 30...
Rf8 {[%clk 0:00:06.1]} 31. Be4 {[%clk 0:00:11]} 31... f5 {[%clk 0:00:06.3]} 32.
Bxc6 {[%clk 0:00:12]} 32... bxc6 {[%clk 0:00:07.1]} 33. Kh1 {[%clk 0:00:11.4]}
33... f4 {[%clk 0:00:08]} 34. exf4 {[%clk 0:00:11.1]} 34... Rxf4 {[%clk
0:00:09.9]} 35. Rxf4 {[%clk 0:00:11.1]} 35... Qxf4 {[%clk 0:00:10.8]} 36. h3
{[%clk 0:00:12.5]} 36... e4 {[%clk 0:00:11.2]} 37. b5 {[%clk 0:00:12.5]} 37...
axb5 {[%clk 0:00:11.9]} 38. axb5 {[%clk 0:00:14.4]} 38... Qc1+ {[%clk
0:00:10.4]} 39. Kh2 {[%clk 0:00:14.4]} 39... Qxc5 {[%clk 0:00:10.6]} 40. b6
{[%clk 0:00:14.6]} 40... Qd6+ {[%clk 0:00:09.7]} 41. Kg1 {[%clk 0:00:14.3]}
41... Qd4+ {[%clk 0:00:09.1]} 42. Kh2 {[%clk 0:00:13.9]} 42... Qe5+ {[%clk
0:00:07.6]} 43. Kg1 {[%clk 0:00:14.1]} 43... e3 {[%clk 0:00:08.7]} 44. b7 {[%clk
0:00:11.4]} 44... e2 {[%clk 0:00:09.5]} 45. Qb4+ {[%clk 0:00:11.9]} 45... c5
{[%clk 0:00:10.3]} 46. b8=Q {[%clk 0:00:12.3]} 46... e1=Q+ {[%clk 0:00:10.9]}
47. Qxe1 {[%clk 0:00:11.8]} 47... Qxe1+ {[%clk 0:00:12.8]} 48. Kh2 {[%clk
0:00:12.6]} 48... Qe3 {[%clk 0:00:10.6]} 49. Qc7+ {[%clk 0:00:12.5]} 49... Kf6
{[%clk 0:00:11.1]} 50. Qd6+ {[%clk 0:00:11.6]} 50... Kf5 {[%clk 0:00:08.5]} 51.
Qf8+ {[%clk 0:00:11.6]} 51... Kg6 {[%clk 0:00:09.1]} 52. Qd6+ {[%clk 0:00:10.9]}
52... Kh7 {[%clk 0:00:10]} 53. h4 {[%clk 0:00:08.7]} 53... c4 {[%clk 0:00:08.9]}
54. h5 {[%clk 0:00:10.1]} 54... Qd3 {[%clk 0:00:08.9]} 55. Qc6 {[%clk
0:00:05.7]} 55... c3 {[%clk 0:00:09.2]} 56. Qc5 {[%clk 0:00:03.9]} 56... c2
{[%clk 0:00:09.5]} 57. g3 {[%clk 0:00:03.5]} 57... Qd2+ {[%clk 0:00:08]} 58. Kh3
{[%clk 0:00:04.7]} 58... Qe2 {[%clk 0:00:04.9]} 59. Qf5+ {[%clk 0:00:04.1]}
59... Kg8 {[%clk 0:00:06.2]} 60. Qc8+ {[%clk 0:00:04.4]} 60... Kf7 {[%clk
0:00:07.5]} 61. Qd7+ {[%clk 0:00:04.6]} 61... Kf6 {[%clk 0:00:08.8]} 62. Qd6+
{[%clk 0:00:04.6]} 62... Qe6+ {[%clk 0:00:09.4]} 63. Qxe6+ {[%clk 0:00:04.9]}
63... Kxe6 {[%clk 0:00:11.3]} 64. Kh4 {[%clk 0:00:05.8]} 64... c1=Q {[%clk
0:00:13.2]} 65. g4 {[%clk 0:00:07.2]} 65... Qg5+ {[%clk 0:00:14.2]} 0-1